[Event "Titled Tuesday Blitz November 30 2021"]
[White "Grigorjev, Iljya"]
[Black "Leiva, Gianmarco"]
[WhiteFideId "24159565"]
[BlackFideId "3804399"]
[WhiteElo "2124"]
[BlackElo "2318"]
[Result "1-0"]
[Round "04"]
[TimeControl "180+1"]
[Date "2021.11.30"]
[WhiteClock "0:00:07"]
[BlackClock "0:00:01"]

1. Nf3 {[%clk 0:03:00]}  Nf6 {[%clk 0:03:00]} 2. g3 {[%clk 0:03:01]}  d5 {[%clk 0:03:00]} 3. Bg2 {[%clk 0:03:01]}  e6 {[%clk 0:03:01]} 4. O-O {[%clk 0:03:02]}  Be7 {[%clk 0:03:01]} 5. b3 {[%clk 0:03:02]}  O-O {[%clk 0:03:01]} 6. Bb2 {[%clk 0:03:03]}  a5 {[%clk 0:03:02]} 7. a4 {[%clk 0:03:02]}  b6 {[%clk 0:03:01]} 8. d4 {[%clk 0:03:01]}  Bb7 {[%clk 0:03:00]} 9. c4 {[%clk 0:02:56]}  dxc4 {[%clk 0:03:01]} 10. bxc4 {[%clk 0:02:56]}  c5 {[%clk 0:03:01]} 11. e3 {[%clk 0:02:33]}  Na6 {[%clk 0:02:59]} 12. Na3 {[%clk 0:02:28]}  Nb4 {[%clk 0:02:55]} 13. Nb5 {[%clk 0:02:28]}  Rc8 {[%clk 0:02:39]} 14. Rc1 {[%clk 0:02:29]}  Na2 {[%clk 0:02:37]} 15. Ra1 {[%clk 0:02:26]}  Nb4 {[%clk 0:02:37]} 16. Ne5 {[%clk 0:02:22]}  Bxg2 {[%clk 0:02:33]} 17. Kxg2 {[%clk 0:02:23]}  cxd4 {[%clk 0:02:29]} 18. exd4 {[%clk 0:02:23]}  Nc6 {[%clk 0:02:23]} 19. Nxc6 {[%clk 0:02:15]}  Rxc6 {[%clk 0:02:23]} 20. Qb3 {[%clk 0:02:10]}  Qa8 {[%clk 0:02:03]} 21. Kg1 {[%clk 0:02:09]}  Rcc8 {[%clk 0:01:58]} 22. Rac1 {[%clk 0:02:05]}  Ne4 {[%clk 0:01:54]} 23. Rfd1 {[%clk 0:01:56]}  Bf6 {[%clk 0:01:35]} 24. f3 {[%clk 0:01:45]}  Ng5 {[%clk 0:01:33]} 25. Kg2 {[%clk 0:01:46]}  h5 {[%clk 0:01:21]} 26. h4 {[%clk 0:01:46]}  Nh7 {[%clk 0:01:22]} 27. Nd6 {[%clk 0:01:47]}  Rc6 {[%clk 0:01:16]} 28. Ne4 {[%clk 0:01:47]}  Rd8 {[%clk 0:01:09]} 29. Qb5 {[%clk 0:01:12]}  Qc8 {[%clk 0:00:58]} 30. d5 {[%clk 0:00:52]}  exd5 {[%clk 0:00:50]} 31. cxd5 {[%clk 0:00:48]}  Rxc1 {[%clk 0:00:41]} 32. Rxc1 {[%clk 0:00:49]}  Qf5 {[%clk 0:00:41]} 33. Qxb6 {[%clk 0:00:35]}  Rxd5 {[%clk 0:00:40]} 34. Bxf6 {[%clk 0:00:27]}  Nxf6 {[%clk 0:00:36]} 35. Qb8+ {[%clk 0:00:23]}  Kh7 {[%clk 0:00:35]} 36. Ng5+ {[%clk 0:00:24]}  Kg6 {[%clk 0:00:34]} 37. Qb7 {[%clk 0:00:19]}  Rd2+ {[%clk 0:00:24]} 38. Kg1 {[%clk 0:00:19]}  Rd7 {[%clk 0:00:23]} 39. Qb5 {[%clk 0:00:16]}  Rd5 {[%clk 0:00:15]} 40. Qb7 {[%clk 0:00:15]}  Rd7 {[%clk 0:00:13]} 41. Qc6 {[%clk 0:00:10]}  Qe5 {[%clk 0:00:11]} 42. Qc2+ {[%clk 0:00:06]}  Kh6 {[%clk 0:00:08]} 43. Kg2 {[%clk 0:00:06]}  Rb7 {[%clk 0:00:07]} 44. Rb1 {[%clk 0:00:05]}  Rc7 {[%clk 0:00:05]} 45. Qd2 {[%clk 0:00:04]}  Qf5 {[%clk 0:00:05]} 46. Nxf7+ {[%clk 0:00:04]}  Kg6 {[%clk 0:00:03]} 47. Qg5+ {[%clk 0:00:03]}  Qxg5 {[%clk 0:00:03]} 48. Nxg5 {[%clk 0:00:04]}  Rc2+ {[%clk 0:00:03]} 49. Kh3 {[%clk 0:00:05]}  Ra2 {[%clk 0:00:02]} 50. Rb7 {[%clk 0:00:05]}  Rxa4 {[%clk 0:00:03]} 51. Ne6 {[%clk 0:00:06]}  Ra1 {[%clk 0:00:03]} 52. Rxg7+ {[%clk 0:00:05]}  Kf5 {[%clk 0:00:03]} 53. Nd4+ {[%clk 0:00:06]}  Ke5 {[%clk 0:00:04]} 54. Nc6+ {[%clk 0:00:06]}  Kd6 {[%clk 0:00:04]} 55. Rg6 {[%clk 0:00:04]}  Kxc6 {[%clk 0:00:03]} 56. Rxf6+ {[%clk 0:00:05]}  Kc5 {[%clk 0:00:01]} 57. Rf5+ {[%clk 0:00:05]}  Kb4 {[%clk 0:00:02]} 58. Rxh5 {[%clk 0:00:06]}  a4 {[%clk 0:00:03]} 59. Rh8 {[%clk 0:00:06]}  a3 {[%clk 0:00:03]} 60. Ra8 {[%clk 0:00:06]}  a2 {[%clk 0:00:03]} 61. Kg4 {[%clk 0:00:07]}  Kb3 {[%clk 0:00:04]} 62. h5 {[%clk 0:00:07]}  Rh1 {[%clk 0:00:01]} 63. Kg5 {[%clk 0:00:07]}  a1=Q {[%clk 0:00:01]} 64. Rxa1 {[%clk 0:00:07]} 1-0


[Site "https://www.chess.com"]

[Event "Titled Tuesday Blitz November 30 2021"]
[White "Halkias, Stelios"]
[Black "Azarov, Sergei"]
[WhiteFideId "4201809"]
[BlackFideId "13501470"]
[WhiteElo "2575"]
[BlackElo "2494"]
[Result "0-1"]
[Round "04"]
[TimeControl "180+1"]
[Date "2021.11.30"]
[WhiteClock "0:00:17"]
[BlackClock "0:00:27"]

1. d4 {[%clk 0:03:00]}  Nf6 {[%clk 0:02:59]} 2. c4 {[%clk 0:02:59]}  e6 {[%clk 0:02:59]} 3. Nf3 {[%clk 0:02:58]}  d5 {[%clk 0:02:59]} 4. g3 {[%clk 0:02:58]}  dxc4 {[%clk 0:02:59]} 5. Bg2 {[%clk 0:02:58]}  a6 {[%clk 0:02:59]} 6. O-O {[%clk 0:02:57]}  Nc6 {[%clk 0:03:00]} 7. Nc3 {[%clk 0:02:56]}  Rb8 {[%clk 0:02:54]} 8. e4 {[%clk 0:02:55]}  Be7 {[%clk 0:02:43]} 9. d5 {[%clk 0:02:54]}  exd5 {[%clk 0:02:36]} 10. exd5 {[%clk 0:02:54]}  Nb4 {[%clk 0:02:26]} 11. Ne5 {[%clk 0:02:53]}  O-O {[%clk 0:02:13]} 12. Nxc4 {[%clk 0:02:46]}  Bf5 {[%clk 0:02:12]} 13. Ne3 {[%clk 0:02:43]}  Bg6 {[%clk 0:02:07]} 14. Qf3 {[%clk 0:01:58]}  Bc5 {[%clk 0:01:54]} 15. Rd1 {[%clk 0:01:56]}  Re8 {[%clk 0:01:48]} 16. h3 {[%clk 0:01:55]}  Qd7 {[%clk 0:01:08]} 17. Bd2 {[%clk 0:01:40]}  Nd3 {[%clk 0:01:05]} 18. Kh2 {[%clk 0:00:49]}  Nxb2 {[%clk 0:01:02]} 19. Rf1 {[%clk 0:00:49]}  Nd3 {[%clk 0:01:00]} 20. Rad1 {[%clk 0:00:49]}  Rbd8 {[%clk 0:00:58]} 21. Nc4 {[%clk 0:00:46]}  b5 {[%clk 0:00:52]} 22. Na5 {[%clk 0:00:38]}  b4 {[%clk 0:00:51]} 23. Bg5 {[%clk 0:00:19]}  Ne5 {[%clk 0:00:47]} 24. Qf4 {[%clk 0:00:18]}  bxc3 {[%clk 0:00:45]} 25. Bxf6 {[%clk 0:00:19]}  gxf6 {[%clk 0:00:44]} 26. Nc6 {[%clk 0:00:18]}  c2 {[%clk 0:00:42]} 27. Rc1 {[%clk 0:00:18]}  Nd3 {[%clk 0:00:40]} 28. Qxf6 {[%clk 0:00:18]}  Nxc1 {[%clk 0:00:36]} 29. Rxc1 {[%clk 0:00:18]}  Qd6 {[%clk 0:00:34]} 30. Qg5 {[%clk 0:00:18]}  Bxf2 {[%clk 0:00:30]} 31. h4 {[%clk 0:00:17]}  Be3 {[%clk 0:00:27]} 0-1


[Site "https://www.chess.com"]

[Event "Titled Tuesday Blitz November 30 2021"]
[White "Ibarra Jerez, Jose Carlos"]
[Black "Papasimakopoulos, Alexandros"]
[WhiteFideId "2226332"]
[BlackFideId "4244125"]
[WhiteElo "2626"]
[BlackElo "2394"]
[Result "1-0"]
[Round "04"]
[TimeControl "180+1"]
[Date "2021.11.30"]
[WhiteClock "0:00:43"]
[BlackClock "0:00:29"]

1. d4 {[%clk 0:03:00]}  e6 {[%clk 0:02:59]} 2. e4 {[%clk 0:02:57]}  d5 {[%clk 0:02:59]} 3. Bd3 {[%clk 0:02:58]}  c5 {[%clk 0:02:58]} 4. exd5 {[%clk 0:02:57]}  exd5 {[%clk 0:02:59]} 5. Nf3 {[%clk 0:02:57]}  Nf6 {[%clk 0:02:59]} 6. O-O {[%clk 0:02:57]}  Be7 {[%clk 0:03:00]} 7. dxc5 {[%clk 0:02:58]}  O-O {[%clk 0:03:00]} 8. b4 {[%clk 0:02:56]}  a5 {[%clk 0:02:56]} 9. c3 {[%clk 0:02:55]}  Nc6 {[%clk 0:02:54]} 10. b5 {[%clk 0:02:29]}  Nb8 {[%clk 0:02:54]} 11. Be3 {[%clk 0:02:27]}  Nbd7 {[%clk 0:02:36]} 12. c6 {[%clk 0:02:24]}  bxc6 {[%clk 0:02:37]} 13. bxc6 {[%clk 0:02:24]}  Nc5 {[%clk 0:02:33]} 14. Bb5 {[%clk 0:02:22]}  a4 {[%clk 0:02:13]} 15. c4 {[%clk 0:02:16]}  Be6 {[%clk 0:02:07]} 16. Nd4 {[%clk 0:02:08]}  Bg4 {[%clk 0:01:57]} 17. f3 {[%clk 0:02:04]}  Bc8 {[%clk 0:01:47]} 18. Nc3 {[%clk 0:02:04]}  dxc4 {[%clk 0:01:45]} 19. Bxc4 {[%clk 0:01:58]}  Qa5 {[%clk 0:01:40]} 20. Qe1 {[%clk 0:01:51]}  Re8 {[%clk 0:01:26]} 21. Ncb5 {[%clk 0:01:48]}  Qb6 {[%clk 0:01:21]} 22. Rb1 {[%clk 0:01:42]}  Ba6 {[%clk 0:00:59]} 23. Nd6 {[%clk 0:01:26]}  Qxb1 {[%clk 0:00:57]} 24. Qxb1 {[%clk 0:01:22]}  Bxd6 {[%clk 0:00:57]} 25. Bxa6 {[%clk 0:01:18]}  Rxa6 {[%clk 0:00:54]} 26. Nf5 {[%clk 0:01:17]}  Bf8 {[%clk 0:00:53]} 27. Qb5 {[%clk 0:01:14]}  Re5 {[%clk 0:00:45]} 28. Bxc5 {[%clk 0:01:01]}  Bxc5+ {[%clk 0:00:44]} 29. Kh1 {[%clk 0:01:01]}  Rb6 {[%clk 0:00:36]} 30. Qxa4 {[%clk 0:00:50]}  Rxf5 {[%clk 0:00:29]} 31. c7 {[%clk 0:00:43]} 1-0


[Site "https://www.chess.com"]

[Event "Titled Tuesday Blitz November 30 2021"]
[White "Indjic, Aleksandar"]
[Black "Gusarov, Grigory"]
[WhiteFideId "911925"]
[BlackFideId "24102172"]
[WhiteElo "2643"]
[BlackElo "2254"]
[Result "0-1"]
[Round "04"]
[TimeControl "180+1"]
[Date "2021.11.30"]
[WhiteClock "0:00:53"]
[BlackClock "0:01:38"]

1. e4 {[%clk 0:03:00]}  c6 {[%clk 0:02:50]} 2. d4 {[%clk 0:02:59]}  d5 {[%clk 0:02:50]} 3. e5 {[%clk 0:03:00]}  Bf5 {[%clk 0:02:50]} 4. h4 {[%clk 0:03:00]}  h6 {[%clk 0:02:41]} 5. Bd3 {[%clk 0:02:59]}  Bxd3 {[%clk 0:02:41]} 6. Qxd3 {[%clk 0:03:00]}  e6 {[%clk 0:02:41]} 7. Nd2 {[%clk 0:02:51]}  Qa5 {[%clk 0:02:41]} 8. Ne2 {[%clk 0:02:46]}  Qa6 {[%clk 0:02:41]} 9. c4 {[%clk 0:02:42]}  Ne7 {[%clk 0:02:40]} 10. b3 {[%clk 0:02:41]}  c5 {[%clk 0:02:34]} 11. O-O {[%clk 0:02:34]}  Nbc6 {[%clk 0:02:34]} 12. Bb2 {[%clk 0:02:26]}  Rd8 {[%clk 0:02:27]} 13. Qf3 {[%clk 0:02:13]}  cxd4 {[%clk 0:02:11]} 14. Nxd4 {[%clk 0:02:11]}  Nxd4 {[%clk 0:02:08]} 15. Bxd4 {[%clk 0:02:08]}  dxc4 {[%clk 0:02:06]} 16. Be3 {[%clk 0:02:08]}  c3 {[%clk 0:01:56]} 17. Ne4 {[%clk 0:02:04]}  Nd5 {[%clk 0:01:56]} 18. Rfc1 {[%clk 0:01:59]}  Ba3 {[%clk 0:01:55]} 19. Rc2 {[%clk 0:01:56]}  Qd3 {[%clk 0:01:45]} 20. Qe2 {[%clk 0:00:53]}  Qxe4 {[%clk 0:01:38]} 0-1


[Site "https://www.chess.com"]

[Event "Titled Tuesday Blitz November 30 2021"]
[White "Kamsky, Gata"]
[Black "Nasuta, Grzegorz"]
[WhiteFideId "2000024"]
[BlackFideId "1141686"]
[WhiteElo "2645"]
[BlackElo "2377"]
[Result "1-0"]
[Round "04"]
[TimeControl "180+1"]
[Date "2021.11.30"]
[WhiteClock "0:00:21"]
[BlackClock "0:00:03"]

1. e4 {[%clk 0:03:00]}  e5 {[%clk 0:02:57]} 2. Nf3 {[%clk 0:02:59]}  Nc6 {[%clk 0:02:57]} 3. Bb5 {[%clk 0:02:58]}  a6 {[%clk 0:02:57]} 4. Ba4 {[%clk 0:02:47]}  Nf6 {[%clk 0:02:57]} 5. O-O {[%clk 0:02:44]}  Be7 {[%clk 0:02:56]} 6. Re1 {[%clk 0:02:44]}  b5 {[%clk 0:02:54]} 7. Bb3 {[%clk 0:02:44]}  d6 {[%clk 0:02:43]} 8. c3 {[%clk 0:02:43]}  O-O {[%clk 0:02:43]} 9. d4 {[%clk 0:02:43]}  Bg4 {[%clk 0:02:41]} 10. d5 {[%clk 0:02:31]}  Na5 {[%clk 0:02:40]} 11. Bc2 {[%clk 0:02:31]}  Qc8 {[%clk 0:02:40]} 12. h3 {[%clk 0:02:30]}  Bd7 {[%clk 0:02:40]} 13. Nbd2 {[%clk 0:02:29]}  c6 {[%clk 0:02:40]} 14. dxc6 {[%clk 0:02:27]}  Qxc6 {[%clk 0:02:40]} 15. Nf1 {[%clk 0:02:26]}  Nc4 {[%clk 0:02:39]} 16. Ng3 {[%clk 0:02:24]}  g6 {[%clk 0:02:37]} 17. b3 {[%clk 0:02:16]}  Nb6 {[%clk 0:02:36]} 18. Bh6 {[%clk 0:02:09]}  Rfc8 {[%clk 0:02:28]} 19. Re3 {[%clk 0:02:08]}  Be6 {[%clk 0:02:24]} 20. Qd2 {[%clk 0:02:02]}  Rd8 {[%clk 0:02:09]} 21. Nf5 {[%clk 0:01:59]}  Bxf5 {[%clk 0:01:26]} 22. exf5 {[%clk 0:01:59]}  Nbd5 {[%clk 0:01:26]} 23. fxg6 {[%clk 0:01:55]}  hxg6 {[%clk 0:01:24]} 24. Rd3 {[%clk 0:01:32]}  Ne4 {[%clk 0:00:53]} 25. Qe1 {[%clk 0:01:27]}  Ndxc3 {[%clk 0:00:53]} 26. Re3 {[%clk 0:01:12]}  f5 {[%clk 0:00:34]} 27. b4 {[%clk 0:00:48]}  Kh7 {[%clk 0:00:31]} 28. Bg5 {[%clk 0:00:36]}  Nxg5 {[%clk 0:00:28]} 29. Nxg5+ {[%clk 0:00:35]}  Bxg5 {[%clk 0:00:28]} 30. Rxc3 {[%clk 0:00:35]}  Qb7 {[%clk 0:00:25]} 31. h4 {[%clk 0:00:36]}  Bf6 {[%clk 0:00:18]} 32. h5 {[%clk 0:00:36]}  e4 {[%clk 0:00:18]} 33. hxg6+ {[%clk 0:00:36]}  Kg7 {[%clk 0:00:18]} 34. Rh3 {[%clk 0:00:35]}  Rh8 {[%clk 0:00:14]} 35. Rd1 {[%clk 0:00:33]}  Rxh3 {[%clk 0:00:13]} 36. gxh3 {[%clk 0:00:33]}  d5 {[%clk 0:00:14]} 37. Qe3 {[%clk 0:00:32]}  Rd8 {[%clk 0:00:12]} 38. Qf4 {[%clk 0:00:31]}  Qd7 {[%clk 0:00:11]} 39. Bb3 {[%clk 0:00:31]}  d4 {[%clk 0:00:11]} 40. h4 {[%clk 0:00:31]}  Qd6 {[%clk 0:00:10]} 41. Qxf5 {[%clk 0:00:30]}  d3 {[%clk 0:00:08]} 42. Qxe4 {[%clk 0:00:30]}  d2 {[%clk 0:00:08]} 43. h5 {[%clk 0:00:28]}  Qd4 {[%clk 0:00:05]} 44. Qxd4 {[%clk 0:00:23]}  Rxd4 {[%clk 0:00:06]} 45. Kf1 {[%clk 0:00:23]}  Bg5 {[%clk 0:00:06]} 46. Ke2 {[%clk 0:00:23]}  Rh4 {[%clk 0:00:06]} 47. Rg1 {[%clk 0:00:22]}  Rxh5 {[%clk 0:00:03]} 48. Rg3 {[%clk 0:00:21]} 1-0


[Site "https://www.chess.com"]

[Event "Titled Tuesday Blitz November 30 2021"]
[White "Kosteniuk, Alexandra"]
[Black "Iljiushenok, Ilia"]
[WhiteFideId "4128125"]
[BlackFideId "24105074"]
[WhiteElo "2521"]
[BlackElo "2578"]
[Result "1/2-1/2"]
[Round "04"]
[TimeControl "180+1"]
[Date "2021.11.30"]
[WhiteClock "0:00:11"]
[BlackClock "0:00:11"]

1. Nf3 {[%clk 0:03:00]}  Nf6 {[%clk 0:02:55]} 2. g3 {[%clk 0:03:00]}  d5 {[%clk 0:02:55]} 3. Bg2 {[%clk 0:03:00]}  c5 {[%clk 0:02:41]} 4. O-O {[%clk 0:02:54]}  e6 {[%clk 0:02:39]} 5. b3 {[%clk 0:02:51]}  Be7 {[%clk 0:02:37]} 6. Bb2 {[%clk 0:02:51]}  O-O {[%clk 0:02:37]} 7. c4 {[%clk 0:02:51]}  d4 {[%clk 0:02:33]} 8. e3 {[%clk 0:02:50]}  Nc6 {[%clk 0:02:32]} 9. exd4 {[%clk 0:02:49]}  cxd4 {[%clk 0:02:32]} 10. d3 {[%clk 0:02:49]}  e5 {[%clk 0:02:30]} 11. Nbd2 {[%clk 0:02:49]}  Re8 {[%clk 0:02:28]} 12. Ng5 {[%clk 0:02:45]}  h6 {[%clk 0:02:19]} 13. Nge4 {[%clk 0:02:44]}  Nd7 {[%clk 0:02:17]} 14. Qh5 {[%clk 0:02:27]}  Nf8 {[%clk 0:02:12]} 15. c5 {[%clk 0:02:13]}  Be6 {[%clk 0:01:41]} 16. Nc4 {[%clk 0:02:06]}  Ng6 {[%clk 0:01:09]} 17. Rac1 {[%clk 0:01:46]}  Qd7 {[%clk 0:01:07]} 18. h3 {[%clk 0:01:43]}  Nb4 {[%clk 0:00:52]} 19. Rcd1 {[%clk 0:00:51]}  Bf8 {[%clk 0:00:34]} 20. Ncd6 {[%clk 0:00:43]}  Nxa2 {[%clk 0:00:23]} 21. Nxe8 {[%clk 0:00:33]}  Rxe8 {[%clk 0:00:23]} 22. Ba3 {[%clk 0:00:30]}  Nc3 {[%clk 0:00:22]} 23. Nxc3 {[%clk 0:00:26]}  dxc3 {[%clk 0:00:23]} 24. Be4 {[%clk 0:00:20]}  Bxh3 {[%clk 0:00:22]} 25. Bxg6 {[%clk 0:00:18]}  fxg6 {[%clk 0:00:22]} 26. Qxg6 {[%clk 0:00:19]}  Bxf1 {[%clk 0:00:21]} 27. Kxf1 {[%clk 0:00:19]}  e4 {[%clk 0:00:18]} 28. b4 {[%clk 0:00:08]}  c2 {[%clk 0:00:16]} 29. Rd2 {[%clk 0:00:07]}  Qa4 {[%clk 0:00:10]} 30. Bc1 {[%clk 0:00:07]}  Qc6 {[%clk 0:00:06]} 31. Qxc6 {[%clk 0:00:06]}  bxc6 {[%clk 0:00:07]} 32. dxe4 {[%clk 0:00:07]}  Rxe4 {[%clk 0:00:06]} 33. Rxc2 {[%clk 0:00:08]}  Rxb4 {[%clk 0:00:06]} 34. Be3 {[%clk 0:00:09]}  a5 {[%clk 0:00:06]} 35. Rd2 {[%clk 0:00:08]}  a4 {[%clk 0:00:06]} 36. Rd8 {[%clk 0:00:08]}  Rc4 {[%clk 0:00:03]} 37. Ra8 {[%clk 0:00:08]}  a3 {[%clk 0:00:03]} 38. Rxa3 {[%clk 0:00:05]}  Bxc5 {[%clk 0:00:03]} 39. Ra8+ {[%clk 0:00:05]}  Kh7 {[%clk 0:00:03]} 40. Bxc5 {[%clk 0:00:05]}  Rxc5 {[%clk 0:00:04]} 41. Rc8 {[%clk 0:00:06]}  Rc4 {[%clk 0:00:04]} 42. Kg2 {[%clk 0:00:06]}  Rc2 {[%clk 0:00:04]} 43. Kf3 {[%clk 0:00:06]}  c5 {[%clk 0:00:05]} 44. g4 {[%clk 0:00:06]}  c4 {[%clk 0:00:06]} 45. Ke3 {[%clk 0:00:06]}  Kg6 {[%clk 0:00:06]} 46. f4 {[%clk 0:00:06]}  Kf7 {[%clk 0:00:06]} 47. Rc7+ {[%clk 0:00:06]}  Kg8 {[%clk 0:00:07]} 48. Rc8+ {[%clk 0:00:06]}  Kh7 {[%clk 0:00:07]} 49. f5 {[%clk 0:00:07]}  Rc3+ {[%clk 0:00:07]} 50. Kf4 {[%clk 0:00:06]}  Rc1 {[%clk 0:00:06]} 51. Rc7 {[%clk 0:00:06]}  c3 {[%clk 0:00:05]} 52. Ke3 {[%clk 0:00:07]}  c2 {[%clk 0:00:04]} 53. Kd2 {[%clk 0:00:06]}  Rg1 {[%clk 0:00:04]} 54. Kxc2 {[%clk 0:00:06]}  Rg2+ {[%clk 0:00:05]} 55. Kd3 {[%clk 0:00:06]}  Rxg4 {[%clk 0:00:06]} 56. f6 {[%clk 0:00:06]}  h5 {[%clk 0:00:05]} 57. Rxg7+ {[%clk 0:00:05]}  Rxg7 {[%clk 0:00:05]} 58. fxg7 {[%clk 0:00:06]}  Kxg7 {[%clk 0:00:05]} 59. Ke2 {[%clk 0:00:07]}  Kf6 {[%clk 0:00:05]} 60. Kf1 {[%clk 0:00:07]}  Kf5 {[%clk 0:00:06]} 61. Kg1 {[%clk 0:00:08]}  Kg4 {[%clk 0:00:07]} 62. Kh1 {[%clk 0:00:08]}  h4 {[%clk 0:00:08]} 63. Kg1 {[%clk 0:00:09]}  h3 {[%clk 0:00:09]} 64. Kh1 {[%clk 0:00:10]}  Kg3 {[%clk 0:00:09]} 65. Kg1 {[%clk 0:00:10]}  h2+ {[%clk 0:00:10]} 66. Kh1 {[%clk 0:00:11]}  Kf2 {[%clk 0:00:11]} 67. Kxh2 {[%clk 0:00:11]} 1/2-1/2


[Site "https://www.chess.com"]

[Event "Titled Tuesday Blitz November 30 2021"]
[White "Kovalev, Vladislav"]
[Black "Martinez Alcantara, Jose Eduardo"]
[WhiteFideId "13504398"]
[BlackFideId "3805662"]
[WhiteElo "2573"]
[BlackElo "2690"]
[Result "0-1"]
[Round "04"]
[TimeControl "180+1"]
[Date "2021.11.30"]
[WhiteClock "0:00:01"]
[BlackClock "0:00:22"]

1. e4 {[%clk 0:03:00]}  c5 {[%clk 0:02:58]} 2. Nf3 {[%clk 0:03:00]}  d6 {[%clk 0:02:59]} 3. Bb5+ {[%clk 0:02:59]}  Nd7 {[%clk 0:02:58]} 4. O-O {[%clk 0:02:58]}  a6 {[%clk 0:02:54]} 5. Bd3 {[%clk 0:02:59]}  Ngf6 {[%clk 0:02:52]} 6. Re1 {[%clk 0:02:59]}  e6 {[%clk 0:02:52]} 7. c3 {[%clk 0:02:59]}  b5 {[%clk 0:02:52]} 8. Bc2 {[%clk 0:02:59]}  c4 {[%clk 0:02:53]} 9. a4 {[%clk 0:02:59]}  Bb7 {[%clk 0:02:54]} 10. axb5 {[%clk 0:02:50]}  axb5 {[%clk 0:02:54]} 11. Rxa8 {[%clk 0:02:51]}  Qxa8 {[%clk 0:02:55]} 12. Na3 {[%clk 0:02:52]}  Bxe4 {[%clk 0:02:50]} 13. Nxb5 {[%clk 0:02:44]}  Qb7 {[%clk 0:02:26]} 14. Bxe4 {[%clk 0:01:44]}  Nxe4 {[%clk 0:02:25]} 15. d3 {[%clk 0:01:44]}  Qxb5 {[%clk 0:01:54]} 16. dxe4 {[%clk 0:01:19]}  Be7 {[%clk 0:01:50]} 17. Nd4 {[%clk 0:01:19]}  Qa6 {[%clk 0:01:47]} 18. Qg4 {[%clk 0:01:11]}  Bf6 {[%clk 0:01:31]} 19. Qg3 {[%clk 0:00:47]}  Ne5 {[%clk 0:00:55]} 20. Bg5 {[%clk 0:00:38]}  Bxg5 {[%clk 0:00:56]} 21. Qxg5 {[%clk 0:00:38]}  O-O {[%clk 0:00:56]} 22. h4 {[%clk 0:00:34]}  h6 {[%clk 0:00:50]} 23. Qd2 {[%clk 0:00:32]}  Rb8 {[%clk 0:00:49]} 24. Rd1 {[%clk 0:00:07]}  Qb7 {[%clk 0:00:43]} 25. Nf3 {[%clk 0:00:04]}  Nd3 {[%clk 0:00:40]} 26. b4 {[%clk 0:00:03]}  Qxe4 {[%clk 0:00:39]} 27. Nd4 {[%clk 0:00:03]}  Qxh4 {[%clk 0:00:33]} 28. b5 {[%clk 0:00:02]}  Qg5 {[%clk 0:00:29]} 29. Qxg5 {[%clk 0:00:02]}  hxg5 {[%clk 0:00:30]} 30. Rb1 {[%clk 0:00:03]}  Nc5 {[%clk 0:00:27]} 31. Nc6 {[%clk 0:00:02]}  Rb6 {[%clk 0:00:24]} 32. Na5 {[%clk 0:00:02]}  d5 {[%clk 0:00:24]} 33. Nc6 {[%clk 0:00:01]}  Ne4 {[%clk 0:00:23]} 34. Rc1 {[%clk 0:00:01]}  Rxb5 {[%clk 0:00:22]} 0-1


[Site "https://www.chess.com"]

[Event "Titled Tuesday Blitz November 30 2021"]
[White "Krishnan, Varun"]
[Black "Sychev, Klementy"]
[WhiteFideId "5054508"]
[BlackFideId "4114060"]
[WhiteElo "2665"]
[BlackElo "2615"]
[Result "1-0"]
[Round "04"]
[TimeControl "180+1"]
[Date "2021.11.30"]
[WhiteClock "0:00:08"]
[BlackClock "0:00:01"]

1. e4 {[%clk 0:02:45]}  Nc6 {[%clk 0:02:58]} 2. Nf3 {[%clk 0:02:39]}  d6 {[%clk 0:02:59]} 3. d4 {[%clk 0:02:38]}  Nf6 {[%clk 0:02:59]} 4. Nc3 {[%clk 0:02:36]}  g6 {[%clk 0:02:59]} 5. Bb5 {[%clk 0:02:34]}  a6 {[%clk 0:02:57]} 6. Bxc6+ {[%clk 0:02:24]}  bxc6 {[%clk 0:02:58]} 7. e5 {[%clk 0:02:18]}  Nd5 {[%clk 0:02:54]} 8. Ne4 {[%clk 0:02:12]}  Bg7 {[%clk 0:02:53]} 9. c4 {[%clk 0:02:11]}  Nb6 {[%clk 0:02:49]} 10. b3 {[%clk 0:02:07]}  O-O {[%clk 0:01:59]} 11. O-O {[%clk 0:02:05]}  a5 {[%clk 0:01:46]} 12. a4 {[%clk 0:02:02]}  d5 {[%clk 0:01:27]} 13. cxd5 {[%clk 0:01:49]}  Nxd5 {[%clk 0:01:25]} 14. Ba3 {[%clk 0:01:42]}  Bf5 {[%clk 0:01:11]} 15. Ng3 {[%clk 0:01:34]}  Bd7 {[%clk 0:01:08]} 16. Qc2 {[%clk 0:01:31]}  Rb8 {[%clk 0:01:07]} 17. Nd2 {[%clk 0:01:24]}  Nb4 {[%clk 0:01:05]} 18. Bxb4 {[%clk 0:01:24]}  Rxb4 {[%clk 0:01:05]} 19. Nc4 {[%clk 0:01:15]}  f5 {[%clk 0:00:32]} 20. Nxa5 {[%clk 0:01:05]}  Rxd4 {[%clk 0:00:27]} 21. Nxc6 {[%clk 0:01:05]}  Bxc6 {[%clk 0:00:27]} 22. Qxc6 {[%clk 0:01:05]}  Bxe5 {[%clk 0:00:25]} 23. Qe6+ {[%clk 0:01:02]}  Rf7 {[%clk 0:00:18]} 24. Qxe5 {[%clk 0:01:02]}  Rd5 {[%clk 0:00:19]} 25. Qe6 {[%clk 0:00:56]}  Rd6 {[%clk 0:00:17]} 26. Qc4 {[%clk 0:00:56]}  Rd4 {[%clk 0:00:17]} 27. Qc1 {[%clk 0:00:47]}  f4 {[%clk 0:00:14]} 28. Ne2 {[%clk 0:00:47]}  Re4 {[%clk 0:00:14]} 29. Nc3 {[%clk 0:00:40]}  Rd4 {[%clk 0:00:13]} 30. Nb5 {[%clk 0:00:32]}  Rd7 {[%clk 0:00:13]} 31. f3 {[%clk 0:00:29]}  Rf6 {[%clk 0:00:13]} 32. Rd1 {[%clk 0:00:28]}  c6 {[%clk 0:00:11]} 33. Rxd7 {[%clk 0:00:23]}  Qxd7 {[%clk 0:00:11]} 34. Qc4+ {[%clk 0:00:20]}  Kg7 {[%clk 0:00:08]} 35. Nd4 {[%clk 0:00:18]}  Rd6 {[%clk 0:00:08]} 36. Rd1 {[%clk 0:00:13]}  e5 {[%clk 0:00:05]} 37. a5 {[%clk 0:00:11]}  Rxd4 {[%clk 0:00:04]} 38. Rxd4 {[%clk 0:00:11]}  exd4 {[%clk 0:00:04]} 39. Qd3 {[%clk 0:00:11]}  c5 {[%clk 0:00:04]} 40. a6 {[%clk 0:00:10]}  g5 {[%clk 0:00:02]} 41. h3 {[%clk 0:00:09]}  Qe7 {[%clk 0:00:02]} 42. Qe4 {[%clk 0:00:08]}  Qc7 {[%clk 0:00:01]} 43. Qb7 {[%clk 0:00:08]} 1-0


[Site "https://www.chess.com"]